[Event "EYCC Open U10 2021"]
[Site "Tornelo"]
[Date "2021.10.15"]
[Round "1.10"]
[White "Golis, Wiktor"]
[Black "Vyshegorodtsev, Svyatoslav"]
[Result "0-1"]
[ECO "B35"]
[WhiteElo "1684"]
[BlackElo "1271"]
[Annotator "NA"]
[PlyCount "136"]
[EventDate "2021.10.15"]
[EventType "swiss"]
[EventCountry "NET"]
[SourceTitle "playchess.com"]
[Source "ChessBase"]
[SourceQuality "1"]
[TimeControl "5400+30"]

1. e4 {[%emt 0:00:30]} c5 {[%emt 0:00:35]} 2. Nf3 {[%emt 0:00:09]} g6 {[%emt 0:00:05]} 3. d4 {[%emt 0:00:09]} cxd4 {[%emt 0:00:02]} 4. Nxd4 {[%emt 0:00:10]} Bg7 {[%emt 0:00:04]} 5. Nc3 {[%emt 0:00:15]} Nc6 {[%emt 0:00:03]} 6. Be3 {[%emt 0:00:09]} Nf6 {[%emt 0:00:03]} 7. Bc4 {[%emt 0:00:18]} O-O {[%emt 0:00:05]} 8. Qd2 {[%emt 0:00:40]} Ng4 {[%emt 0:00:10]} 9. Nxc6 {[%emt 0:04:58]} dxc6 {[%emt 0:04:53]} 10. Qxd8 {[%emt 0:02:17]} Rxd8 {[%emt 0:00:05]} 11. Bc5 {[%emt 0:00:24]} e6 {[%emt 0:04:17]} 12. h3 {[%emt 0:03:49]} Ne5 {[%emt 0:01:56]} 13. Be2 {[%emt 0:01:16]} b5 {[%emt 0:07:33]} 14. f4 {[%emt 0:03:49]} Nd7 {[%emt 0:00:49]} 15. Rd1 {[%emt 0:03:00]} Re8 {[%emt 0:01:39]} 16. Bd6 {[%emt 0:01:40]} a5 {[%emt 0:08:22]} 17. e5 {[%emt 0:05:08]} Nb6 {[%emt 0:05:29]} 18. Bf3 {[%emt 0:01:05]} Nd5 {[%emt 0:00:44]} 19. Ne2 {[%emt 0:01:18]} Bb7 {[%emt 0:02:15]} 20. g3 {[%emt 0:01:50]} Ne3 {[%emt 0:00:46]} 21. Rc1 {[%emt 0:12:26]} Nc4 {[%emt 0:01:10]} 22. b3 {[%emt 0:02:41]} Nxd6 {[%emt 0:00:07]} 23. exd6 {[%emt 0:00:06]} Rad8 {[%emt 0:00:13]} 24. Rd1 {[%emt 0:01:04]} Bf8 {[%emt 0:00:22]} 25. Nd4 {[%emt 0:01:00]} e5 {[%emt 0:08:56]} 26. Nxc6 {[%emt 0:08:14]} exf4+ {[%emt 0:00:21]} 27. Kf2 {[%emt 0:00:24]} fxg3+ {[%emt 0:00:13]} 28. Kxg3 {[%emt 0:00:33]} Bxd6+ {[%emt 0:00:14]} 29. Kf2 {[%emt 0:02:32]} Bc5+ {[%emt 0:02:29]} 30. Kg3 {[%emt 0:01:28]} Rxd1 {[%emt 0:00:53]} 31. Rxd1 {[%emt 0:00:20]} Re3 {[%emt 0:00:26]} 32. Kg2 {[%emt 0:01:24]} Rxf3 {[%emt 0:02:07]} 33. Kxf3 {[%emt 0:00:24]} Bxc6+ {[%emt 0:00:03]} 34. Kf4 {[%emt 0:00:45]} f5 {[%emt 0:00:32]} 35. Ke5 {[%emt 0:00:14]} Kf7 {[%emt 0:00:07]} 36. Rd8 {[%emt 0:00:13]} Bb6 {[%emt 0:00:26]} 37. Rd1 {[%emt 0:03:16]} Ke7 {[%emt 0:00:33]} 38. c4 {[%emt 0:03:05]} b4 {[%emt 0:02:20]} 39. h4 {[%emt 0:01:00]} Bc5 {[%emt 0:00:38]} 40. h5 {[%emt 0:00:48]} Bf3 {[%emt 0:00:20]} 41. hxg6 {[%emt 0:01:14]} hxg6 {[%emt 0:01:59]} 42. Rd3 {[%emt 0:00:45]} Be4 {[%emt 0:00:05]} 43. Rh3 {[%emt 0:00:38]} Bd6+ {[%emt 0:01:51]} 44. Kd4 {[%emt 0:00:24]} Kf6 {[%emt 0:00:39]} 45. Rh7 {[%emt 0:01:00]} Be5+ {[%emt 0:02:56]} 46. Ke3 {[%emt 0:01:02]} Bb1 {[%emt 0:00:30]} 47. Ra7 {[%emt 0:01:29]} Bxa2 {[%emt 0:00:27]} 48. Rxa5 {[%emt 0:01:17]} Bxb3 {[%emt 0:00:57]} 49. c5 {[%emt 0:00:05]} Bd5 {[%emt 0:00:21]} 50. c6 {[%emt 0:01:15]} f4+ {[%emt 0:00:17]} 51. Kd3 {[%emt 0:00:11]} Be6 {[%emt 0:00:16]} 52. Ke4 {[%emt 0:00:17]} Bf5+ {[%emt 0:00:25]} 53. Kf3 {[%emt 0:00:22]} b3 {[%emt 0:00:04]} 54. c7 {[%emt 0:00:31]} b2 {[%emt 0:00:24]} 55. Rb5 {[%emt 0:00:08]} Bxc7 {[%emt 0:00:35]} 56. Rxb2 {[%emt 0:00:05]} g5 {[%emt 0:00:04]} 57. Rb7 {[%emt 0:00:10]} g4+ {[%emt 0:00:05]} 58. Kf2 {[%emt 0:00:04]} Be5 {[%emt 0:00:11]} 59. Rb6+ {[%emt 0:00:23]} Kg5 {[%emt 0:00:03]} 60. Rb5 {[%emt 0:00:03]} Bd4+ {[%emt 0:00:22]} 61. Kg2 {[%emt 0:00:14]} Be3 {[%emt 0:00:18]} 62. Re5 {[%emt 0:00:46]} f3+ {[%emt 0:00:11]} 63. Kf1 {[%emt 0:00:10]} Kf4 {[%emt 0:00:10]} 64. Rd5 {[%emt 0:00:17]} g3 {[%emt 0:00:06]} 65. Rd2 {[%emt 0:00:35]} Bxd2 {[%emt 0:00:08]} 66. Kg1 {[%emt 0:00:11]} Be3+ {[%emt 0:00:08]} 67. Kh1 {[%emt 0:00:11]} g2+ {[%emt 0:00:07]} 68. Kh2 {[%emt 0:00:08]} g1=Q# {[%emt 0:00:03]} 0-1

[Event "EYCC Open U10 2021"]
[Site "Tornelo"]
[Date "2021.10.15"]
[Round "1.11"]
[White "Rosa, Jose Lourenco Jesus"]
[Black "Oikonomopoulos, Filippos"]
[Result "0-1"]
[ECO "B40"]
[WhiteElo "1269"]
[BlackElo "1650"]
[Annotator "NA"]
[PlyCount "44"]
[EventDate "2021.10.15"]
[EventType "swiss"]
[EventCountry "NET"]
[SourceTitle "playchess.com"]
[Source "ChessBase"]
[SourceQuality "1"]
[TimeControl "5400+30"]

1. e4 {[%emt 0:00:30]} c5 {[%emt 0:00:35]} 2. Nf3 {[%emt 0:00:05]} e6 {[%emt 0:00:03]} 3. d4 {[%emt 0:00:14]} cxd4 {[%emt 0:00:08]} 4. Nxd4 {[%emt 0:00:03]} Nc6 {[%emt 0:00:03]} 5. Nxc6 {[%emt 0:00:45]} bxc6 {[%emt 0:00:04]} 6. Bd3 {[%emt 0:00:06]} d5 {[%emt 0:00:13]} 7. O-O {[%emt 0:00:09]} Nf6 {[%emt 0:01:10]} 8. Nd2 {[%emt 0:07:15]} Bd6 {[%emt 0:10:46]} 9. Qe2 {[%emt 0:09:43]} Qc7 {[%emt 0:02:28]} 10. Nf3 {[%emt 0:00:34]} dxe4 {[%emt 0:07:36]} 11. Bxe4 {[%emt 0:00:35]} Nxe4 {[%emt 0:00:22]} 12. Qxe4 {[%emt 0:00:06]} Bb7 {[%emt 0:05:35]} 13. h3 {[%emt 0:05:04]} c5 {[%emt 0:02:43]} 14. Qd3 {[%emt 0:00:32]} O-O-O {[%emt 0:12:18]} 15. Qc3 {[%emt 0:02:42]} g5 {[%emt 0:18:04]} 16. Bxg5 {[%emt 0:05:06]} Rdg8 {[%emt 0:00:38]} 17. Bf6 {[%emt 0:05:34]} Qc6 {[%emt 0:00:41]} 18. Bxh8 {[%emt 0:04:43]} Qxf3 {[%emt 0:00:16]} 19. Qxf3 {[%emt 0:01:37]} Bxf3 {[%emt 0:00:20]} 20. Rfe1 {[%emt 0:09:15]} Rxg2+ {[%emt 0:00:14]} 21. Kh1 {[%emt 0:00:04]} Rh2+ {[%emt 0:00:04]} 22. Kg1 {[%emt 0:00:05]} Rh1# {[%emt 0:00:01]} 0-1

[Event "EYCC Open U10 2021"]
[Site "Tornelo"]
[Date "2021.10.15"]
[Round "1.12"]
[White "Feher, Botond"]
[Black "Komarek, Tobias"]
[Result "1-0"]
[ECO "A21"]
[WhiteElo "1644"]
[BlackElo "1260"]
[Annotator "NA"]
[PlyCount "115"]
[EventDate "2021.10.15"]
[EventType "swiss"]
[EventCountry "NET"]
[SourceTitle "playchess.com"]
[Source "ChessBase"]
[SourceQuality "1"]
[TimeControl "5400+30"]

1. c4 {[%emt 0:00:30]} e5 {[%emt 0:01:01]} 2. Nc3 {[%emt 0:00:42]} b6 {[%emt 0:00:39]} 3. e4 {[%emt 0:01:00]} Bb7 {[%emt 0:01:16]} 4. g3 {[%emt 0:01:37]} Nf6 {[%emt 0:00:43]} 5. Bg2 {[%emt 0:00:52]} Bc5 {[%emt 0:01:11]} 6. d3 {[%emt 0:01:15]} Nc6 {[%emt 0:01:13]} 7. Bg5 {[%emt 0:05:26]} h6 {[%emt 0:01:53]} 8. Bd2 {[%emt 0:01:09]} O-O {[%emt 0:00:57]} 9. Nge2 {[%emt 0:01:12]} Nb4 {[%emt 0:02:46]} 10. Bc1 {[%emt 0:04:01]} a5 {[%emt 0:03:48]} 11. O-O {[%emt 0:02:15]} c6 {[%emt 0:00:55]} 12. a3 {[%emt 0:02:36]} Na6 {[%emt 0:00:30]} 13. Na4 {[%emt 0:12:02]} d5 {[%emt 0:01:30]} 14. Nxc5 {[%emt 0:01:36]} Nxc5 {[%emt 0:00:17]} 15. d4 {[%emt 0:01:41]} exd4 {[%emt 0:00:47]} 16. e5 {[%emt 0:01:05]} Nfd7 {[%emt 0:01:09]} 17. Nxd4 {[%emt 0:11:17]} Nxe5 {[%emt 0:01:31]} 18. cxd5 {[%emt 0:01:07]} cxd5 {[%emt 0:03:00]} 19. Be3 {[%emt 0:00:59]} Nc4 {[%emt 0:01:29]} 20. Qe2 {[%emt 0:02:13]} Nxe3 {[%emt 0:00:31]} 21. Qxe3 {[%emt 0:00:07]} Re8 {[%emt 0:00:51]} 22. Qd2 {[%emt 0:00:57]} Ne6 {[%emt 0:03:21]} 23. Rac1 {[%emt 0:02:54]} Nxd4 {[%emt 0:03:03]} 24. Qxd4 {[%emt 0:00:06]} Qd7 {[%emt 0:01:17]} 25. Qxb6 {[%emt 0:00:31]} Ba6 {[%emt 0:03:36]} 26. Rfd1 {[%emt 0:00:43]} Bc4 {[%emt 0:03:09]} 27. Rxc4 {[%emt 0:00:31]} Qf5 {[%emt 0:03:22]} 28. Rcd4 {[%emt 0:00:55]} Rad8 {[%emt 0:02:55]} 29. Qxa5 {[%emt 0:00:23]} Qc2 {[%emt 0:02:11]} 30. Qd2 {[%emt 0:00:33]} Qf5 {[%emt 0:01:44]} 31. Rxd5 {[%emt 0:00:38]} Rxd5 {[%emt 0:00:12]} 32. Qxd5 {[%emt 0:00:06]} Qc2 {[%emt 0:01:04]} 33. b4 {[%emt 0:00:39]} Qc3 {[%emt 0:00:51]} 34. Qc6 {[%emt 0:00:37]} Qe5 {[%emt 0:01:47]} 35. b5 {[%emt 0:00:47]} Rf8 {[%emt 0:00:30]} 36. a4 {[%emt 0:00:14]} Qe2 {[%emt 0:00:34]} 37. Rc1 {[%emt 0:00:17]} Qa2 {[%emt 0:00:19]} 38. b6 {[%emt 0:00:09]} Rd8 {[%emt 0:01:18]} 39. Be4 {[%emt 0:00:14]} Rf8 {[%emt 0:00:44]} 40. b7 {[%emt 0:00:15]} Qa3 {[%emt 0:00:37]} 41. a5 {[%emt 0:00:22]} Qxa5 {[%emt 0:00:40]} 42. Qc8 {[%emt 0:00:19]} Qb4 {[%emt 0:01:20]} 43. Rb1 {[%emt 0:01:16]} Qxe4 {[%emt 0:00:42]} 44. Qxf8+ {[%emt 0:00:12]} Kxf8 {[%emt 0:00:32]} 45. b8=Q+ {[%emt 0:01:09]} Qe8 {[%emt 0:00:20]} 46. Qxe8+ {[%emt 0:00:05]} Kxe8 {[%emt 0:00:05]} 47. Rb7 {[%emt 0:00:04]} Kf8 {[%emt 0:00:24]} 48. Kg2 {[%emt 0:00:05]} g5 {[%emt 0:00:14]} 49. Kf3 {[%emt 0:00:03]} f5 {[%emt 0:00:17]} 50. Rh7 {[%emt 0:00:05]} Kg8 {[%emt 0:00:17]} 51. Rxh6 {[%emt 0:00:03]} Kg7 {[%emt 0:00:03]} 52. Ra6 {[%emt 0:00:04]} Kf7 {[%emt 0:00:20]} 53. h4 {[%emt 0:00:05]} gxh4 {[%emt 0:00:10]} 54. gxh4 {[%emt 0:00:03]} Ke7 {[%emt 0:00:07]} 55. Kf4 {[%emt 0:00:04]} Kd7 {[%emt 0:00:06]} 56. Kxf5 {[%emt 0:00:02]} Ke7 {[%emt 0:00:07]} 57. h5 {[%emt 0:00:02]} Kf7 {[%emt 0:00:08]} 58. h6 {[%emt 0:00:08]} 1-0

[Event "EYCC Open U10 2021"]
[Site "Tornelo"]
[Date "2021.10.15"]
[Round "2.1"]
[White "Ahmad, Khagan"]
[Black "Merkouropoulos, Dionysios"]
[Result "1-0"]
[ECO "D12"]
[WhiteElo "2009"]
[BlackElo "1423"]
[Annotator "NA"]
[PlyCount "51"]
[EventDate "2021.10.15"]
[EventType "swiss"]
[EventCountry "NET"]
[SourceTitle "playchess.com"]
[Source "ChessBase"]
[SourceQuality "1"]
[TimeControl "5400+30"]

1. Nf3 {[%emt 0:00:30]} d5 {[%emt 0:00:58]} 2. e3 {[%emt 0:00:09]} Nf6 {[%emt 0:00:23]} 3. c4 {[%emt 0:00:03]} e6 {[%emt 0:00:59]} 4. cxd5 {[%emt 0:00:07]} exd5 {[%emt 0:00:09]} 5. d4 {[%emt 0:00:02]} Bf5 {[%emt 0:01:31]} 6. Nc3 {[%emt 0:00:26]} c6 {[%emt 0:02:19]} 7. Bd3 {[%emt 0:00:04]} Bxd3 {[%emt 0:00:44]} 8. Qxd3 {[%emt 0:00:03]} Bd6 {[%emt 0:01:06]} 9. O-O {[%emt 0:00:10]} O-O {[%emt 0:00:33]} 10. Rb1 {[%emt 0:00:02]} a5 {[%emt 0:02:05]} 11. a3 {[%emt 0:01:30]} a4 {[%emt 0:01:02]} 12. b3 {[%emt 0:00:18]} axb3 {[%emt 0:01:24]} 13. a4 {[%emt 0:00:02]} Nbd7 {[%emt 0:07:18]} 14. Rxb3 {[%emt 0:00:06]} Nb6 {[%emt 0:02:43]} 15. Ba3 {[%emt 0:04:01]} Bxa3 {[%emt 0:03:35]} 16. Rxa3 $11 {[%emt 0:00:05]} Nc4 {[%emt 0:01:45]} 17. Rb3 {[%emt 0:00:06]} Nd6 {[%emt 0:00:41]} 18. Ne5 {[%emt 0:00:48]} Nfe4 {[%emt 0:03:04]} 19. Nxe4 {[%emt 0:04:50]} dxe4 {[%emt 0:00:11]} 20. Qc2 {[%emt 0:00:03]} Qc7 {[%emt 0:15:15]} 21. Rfb1 {[%emt 0:00:42]} Rfc8 {[%emt 0:04:19]} 22. Nc4 {[%emt 0:04:42]} Rxa4 {[%emt 0:03:46]} 23. Nb6 {[%emt 0:00:36]} Rca8 {[%emt 0:01:09]} 24. Nxa4 {[%emt 0:00:09]} Rxa4 {[%emt 0:00:07]} 25. Rxb7 {[%emt 0:00:03]} Nxb7 {[%emt 0:01:05]} 26. Qxa4 {[%emt 0:00:03]} 1-0

[Event "EYCC Open U10 2021"]
[Site "Tornelo"]
[Date "2021.10.15"]
[Round "2.2"]
[White "Brzezina, Piotr"]
[Black "Besou, Hussain"]
[Result "0-1"]
[ECO "B51"]
[WhiteElo "1418"]
[BlackElo "1995"]
[Annotator "NA"]
[PlyCount "146"]
[EventDate "2021.10.15"]
[EventType "swiss"]
[EventCountry "NET"]
[SourceTitle "playchess.com"]
[Source "ChessBase"]
[SourceQuality "1"]
[TimeControl "5400+30"]

1. e4 {[%emt 0:00:30]} c5 {[%emt 0:00:36]} 2. Nf3 {[%emt 0:00:05]} d6 {[%emt 0:00:07]} 3. Bb5+ {[%emt 0:00:05]} Nd7 {[%emt 0:00:07]} 4. c3 {[%emt 0:00:16]} Ngf6 {[%emt 0:01:24]} 5. d3 {[%emt 0:00:35]} a6 {[%emt 0:00:06]} 6. Ba4 {[%emt 0:00:03]} b5 {[%emt 0:00:05] 6...b5 is better than 6...g6.} 7. Bc2 {[%emt 0:00:06]} Bb7 {[%emt 0:00:06]} 8. O-O {[%emt 0:00:04]} g6 {[%emt 0:00:40]} 9. Re1 {[%emt 0:00:04]} Bg7 {[%emt 0:00:05]} 10. Nbd2 {[%emt 0:00:22]} O-O {[%emt 0:00:52]} 11. Nf1 {[%emt 0:00:13]} Rc8 {[%emt 0:00:28]} 12. Ng3 {[%emt 0:00:24]} Qc7 {[%emt 0:01:25] [#]} 13. Bf4 $146 {[%emt 0:01:27]} ({Predecessor:} 13. Bd2 e5 14. Qc1 Rfe8 15. Bh6 Bh8 16. h4 d5 17. h5 dxe4 18. dxe4 Nf8 19. Qg5 {1-0 (46) Sargsyan,A (2374)-Pham,X (2197) Moscow 2020}) 13... e5 {[%emt 0:00:16]} 14. Be3 {[%emt 0:00:14]} d5 {[%emt 0:00:11]} 15. Qe2 {[%emt 0:01:06]} Rfe8 {[%emt 0:03:37]} 16. Rad1 {[%emt 0:01:05]} d4 {[%emt 0:00:26]} 17. Bc1 {[%emt 0:03:45]} Nb6 {[%emt 0:04:37]} 18. c4 {[%emt 0:01:24]} bxc4 {[%emt 0:00:55]} 19. dxc4 {[%emt 0:00:19]} a5 {[%emt 0:00:13]} 20. Bd2 {[%emt 0:00:38]} Ra8 {[%emt 0:00:20]} 21. Ra1 {[%emt 0:00:55]} Nfd7 {[%emt 0:03:19]} 22. Reb1 {[%emt 0:03:46]} Nf8 {[%emt 0:01:28]} 23. Ne1 {[%emt 0:01:07]} Ne6 {[%emt 0:01:07]} 24. b3 {[%emt 0:00:26]} h5 {[%emt 0:02:02]} 25. h3 {[%emt 0:03:26]} h4 {[%emt 0:07:07]} 26. Nf1 $17 {[%emt 0:00:24]} Bf6 {[%emt 0:00:58]} 27. Nh2 {[%emt 0:02:53]} Nd7 {[%emt 0:09:49]} 28. Qg4 {[%emt 0:02:36]} Be7 {[%emt 0:03:22]} 29. Qe2 {[%emt 0:02:31]} Nf6 {[%emt 0:02:12]} 30. Ng4 {[%emt 0:00:57]} Nh5 {[%emt 0:06:42]} 31. Nd3 {[%emt 0:04:59]} Nef4 {[%emt 0:12:51]} 32. Bxf4 {[%emt 0:04:29]} exf4 {[%emt 0:00:38]} 33. f3 {[%emt 0:01:12]} Bg5 {[%emt 0:00:43]} 34. Ngf2 {[%emt 0:02:22]} Ng3 {[%emt 0:03:14]} 35. Qd2 {[%emt 0:01:14]} Kg7 {[%emt 0:01:19]} 36. Re1 {[%emt 0:01:26]} Ra6 {[%emt 0:01:03]} 37. Nh1 {[%emt 0:02:28]} Bh6 {[%emt 0:00:51]} 38. Qf2 {[%emt 0:04:46]} Rae6 {[%emt 0:00:20]} 39. Nb2 {[%emt 0:02:13]} f5 {[%emt 0:00:52]} 40. exf5 {[%emt 0:01:00]} Re2 {[%emt 0:00:13]} 41. Rxe2 {[%emt 0:08:04]} Rxe2 {[%emt 0:00:05]} 42. Nxg3 {[%emt 0:01:26]} Rxf2 {[%emt 0:00:09]} 43. Nh5+ {[%emt 0:00:02]} gxh5 {[%emt 0:00:10]} 44. Kxf2 {[%emt 0:00:04]} d3 {[%emt 0:00:07]} 45. Nxd3 {[%emt 0:00:44]} Qd6 {[%emt 0:00:11]} 46. Re1 {[%emt 0:01:15]} Bc8 {[%emt 0:00:18]} 47. Re5 {[%emt 0:01:08]} Qd4+ {[%emt 0:00:09]} 48. Ke2 {[%emt 0:00:26]} Kf7 {[%emt 0:00:14]} 49. Rxc5 {[%emt 0:01:22]} Qe3+ {[%emt 0:01:16]} 50. Kf1 {[%emt 0:01:15]} Bd7 {[%emt 0:02:47]} 51. Re5 {[%emt 0:00:48]} Qd4 {[%emt 0:01:00]} 52. Rd5 {[%emt 0:00:39]} Qa1+ {[%emt 0:00:05]} 53. Ke2 {[%emt 0:00:09]} Ke8 {[%emt 0:00:13]} 54. Re5+ {[%emt 0:01:29]} Kf8 {[%emt 0:00:16]} 55. f6 {[%emt 0:01:06]} Qg1 {[%emt 0:00:21]} 56. Ne1 {[%emt 0:02:01]} Qd4 {[%emt 0:00:24]} 57. Nd3 {[%emt 0:01:16]} Qd6 {[%emt 0:00:13]} 58. Rd5 {[%emt 0:00:43]} Qxf6 {[%emt 0:00:16]} 59. Ne5 {[%emt 0:02:25]} Bc8 {[%emt 0:00:17]} 60. Ng6+ {[%emt 0:02:34]} Kg7 {[%emt 0:00:14]} 61. Re5 {[%emt 0:01:46]} Qd8 {[%emt 0:00:39]} 62. Rd5 {[%emt 0:00:42]} Qb6 {[%emt 0:00:17]} 63. c5 {[%emt 0:01:28]} Qe6+ {[%emt 0:00:21]} 64. Re5 {[%emt 0:00:14]} Qc6 {[%emt 0:01:10]} 65. Re7+ {[%emt 0:01:45]} Kf6 {[%emt 0:00:17]} 66. Rf7+ {[%emt 0:00:18]} Kg5 {[%emt 0:00:04]} 67. Re7 {[%emt 0:00:46]} Bf8 {[%emt 0:01:06]} 68. Re5+ {[%emt 0:01:55]} Kf6 {[%emt 0:00:15]} 69. Be4 {[%emt 0:01:07]} Ba6+ {[%emt 0:01:25]} 70. Ke1 {[%emt 0:01:10]} Qb5 {[%emt 0:00:27]} 71. Rf5+ {[%emt 0:01:16]} Kxg6 {[%emt 0:00:22]} 72. Rxf8+ {[%emt 0:00:05]} Kg7 {[%emt 0:00:09]} 73. Rf5 {[%emt 0:00:26]} Qe2# {[%emt 0:00:06]} 0-1

[Event "EYCC Open U10 2021"]
[Site "Tornelo"]
[Date "2021.10.15"]
[Round "2.3"]
[White "Negrean, Andrei"]
[Black "Pitsakis, Ilias"]
[Result "1-0"]
[ECO "B92"]
[WhiteElo "1847"]
[BlackElo "1417"]
[Annotator "NA"]
[PlyCount "107"]
[EventDate "2021.10.15"]
[EventType "swiss"]
[EventCountry "NET"]
[SourceTitle "playchess.com"]
[Source "ChessBase"]
[SourceQuality "1"]
[TimeControl "5400+30"]

1. e4 {[%emt 0:00:30]} c5 {[%emt 0:00:37]} 2. Nf3 {[%emt 0:00:14]} d6 {[%emt 0:00:07]} 3. d4 {[%emt 0:00:32]} cxd4 {[%emt 0:00:08]} 4. Nxd4 {[%emt 0:00:15]} Nf6 {[%emt 0:00:08]} 5. Nc3 {[%emt 0:00:31]} a6 {[%emt 0:00:09]} 6. Be2 {[%emt 0:00:34]} e5 {[%emt 0:00:09]} 7. Nb3 {[%emt 0:00:30]} Be6 {[%emt 0:00:41]} 8. O-O {[%emt 0:01:10]} Be7 {[%emt 0:00:18]} 9. Kh1 {[%emt 0:01:20]} O-O {[%emt 0:00:33]} 10. f4 {[%emt 0:01:43]} exf4 {[%emt 0:00:36]} 11. Bxf4 {[%emt 0:00:42]} Nc6 {[%emt 0:00:48]} 12. Qe1 {[%emt 0:10:39]} Nd7 {[%emt 0:08:44]} 13. Rd1 {[%emt 0:10:20]} Nce5 {[%emt 0:04:07]} 14. Nd4 {[%emt 0:03:00]} Rc8 {[%emt 0:11:01]} 15. Nf5 {[%emt 0:04:15]} Bxf5 {[%emt 0:04:02]} 16. exf5 {[%emt 0:00:15]} b5 {[%emt 0:02:42]} 17. a3 {[%emt 0:09:04]} Re8 {[%emt 0:02:17]} 18. Qg3 {[%emt 0:05:48]} Kh8 {[%emt 0:01:47]} 19. Rd2 {[%emt 0:05:21]} Bh4 {[%emt 0:16:21]} 20. Qh3 {[%emt 0:01:18]} Be7 {[%emt 0:00:56]} 21. Rfd1 {[%emt 0:03:27]} Nc4 {[%emt 0:15:23]} 22. Bxc4 {[%emt 0:00:56]} Rxc4 {[%emt 0:01:57]} 23. Bxd6 {[%emt 0:16:12]} Bxd6 {[%emt 0:01:51]} 24. Rxd6 {[%emt 0:00:34]} Qe7 {[%emt 0:01:51]} 25. Qg3 {[%emt 0:08:48]} Nc5 {[%emt 0:01:19]} 26. h3 {[%emt 0:02:02]} h6 {[%emt 0:07:44]} 27. b3 {[%emt 0:07:10]} Rxc3 {[%emt 0:05:08]} 28. Qxc3 {[%emt 0:00:39]} Ne4 {[%emt 0:00:14]} 29. Qd4 {[%emt 0:03:12]} Nxd6 {[%emt 0:02:51]} 30. Qxd6 {[%emt 0:00:13]} Qe4 {[%emt 0:00:49]} 31. Qd3 {[%emt 0:02:13]} Qxd3 {[%emt 0:02:18]} 32. Rxd3 {[%emt 0:00:55]} Re1+ {[%emt 0:00:34]} 33. Kh2 {[%emt 0:00:08]} Rc1 {[%emt 0:02:20]} 34. Rc3 {[%emt 0:01:56]} Ra1 {[%emt 0:00:52]} 35. b4 {[%emt 0:00:22]} h5 {[%emt 0:01:18]} 36. Kg3 {[%emt 0:00:52]} Kh7 {[%emt 0:00:35]} 37. h4 {[%emt 0:00:39]} Rf1 {[%emt 0:00:40]} 38. Rc6 {[%emt 0:00:22]} Rc1 {[%emt 0:00:44]} 39. Kf4 {[%emt 0:00:32]} Rf1+ {[%emt 0:00:49]} 40. Ke5 {[%emt 0:00:26]} Rg1 {[%emt 0:00:53]} 41. Rxa6 {[%emt 0:00:18]} Rxg2 {[%emt 0:00:08]} 42. Rb6 {[%emt 0:00:52]} f6+ {[%emt 0:00:30]} 43. Ke6 {[%emt 0:00:31]} Re2+ {[%emt 0:00:11]} 44. Kd6 {[%emt 0:00:30]} Re5 {[%emt 0:00:26]} 45. Kc6 {[%emt 0:00:33]} Rxf5 {[%emt 0:00:18]} 46. Rxb5 {[%emt 0:00:16]} Rf2 {[%emt 0:01:03]} 47. Rxh5+ {[%emt 0:00:09]} Kg6 {[%emt 0:00:18]} 48. Rc5 {[%emt 0:00:09]} f5 {[%emt 0:00:28]} 49. b5 {[%emt 0:00:15]} f4 {[%emt 0:00:45]} 50. b6 {[%emt 0:00:08]} Re2 {[%emt 0:00:17]} 51. b7 {[%emt 0:00:32]} Re8 {[%emt 0:02:49]} 52. Rb5 {[%emt 0:00:10]} f3 {[%emt 0:01:15]} 53. b8=Q {[%emt 0:00:21]} Rxb8 {[%emt 0:00:06]} 54. Rxb8 {[%emt 0:00:05]} 1-0

[Event "EYCC Open U10 2021"]
[Site "Tornelo"]
[Date "2021.10.15"]
[Round "2.4"]
[White "Petukhov, Dmitriy"]
[Black "Kviriashvili, Andria"]
[Result "1-0"]
[ECO "D55"]
[WhiteElo "1769"]
[BlackElo "1406"]
[Annotator "NA"]
[PlyCount "133"]
[EventDate "2021.10.15"]
[EventType "swiss"]
[EventCountry "NET"]
[SourceTitle "playchess.com"]
[Source "ChessBase"]
[SourceQuality "1"]
[TimeControl "5400+30"]

1. c4 {[%emt 0:00:30]} e6 {[%emt 0:00:36]} 2. d4 {[%emt 0:00:09]} d5 {[%emt 0:00:05]} 3. cxd5 {[%emt 0:00:05]} exd5 {[%emt 0:00:06]} 4. Nc3 {[%emt 0:00:06]} Nf6 {[%emt 0:00:06]} 5. Nf3 {[%emt 0:00:05]} Be7 {[%emt 0:00:07]} 6. Qc2 {[%emt 0:00:07]} O-O {[%emt 0:00:12]} 7. Bg5 {[%emt 0:00:09]} b6 {[%emt 0:01:08]} 8. e3 {[%emt 0:00:10]} Bb7 {[%emt 0:00:28]} 9. Bd3 {[%emt 0:00:06]} h6 {[%emt 0:00:12]} 10. Bh4 {[%emt 0:00:05]} Nbd7 {[%emt 0:01:13]} 11. O-O {[%emt 0:00:15]} Re8 {[%emt 0:03:40]} 12. Bg3 {[%emt 0:00:45]} c6 {[%emt 0:06:24]} 13. h3 {[%emt 0:06:27]} Nf8 {[%emt 0:07:19]} 14. Rac1 {[%emt 0:05:16]} Bd6 {[%emt 0:06:55]} 15. Ne5 {[%emt 0:04:31]} Qe7 {[%emt 0:16:14]} 16. Bh2 {[%emt 0:02:16]} N6d7 {[%emt 0:01:57]} 17. Nxd7 {[%emt 0:00:22]} Bxh2+ {[%emt 0:00:20]} 18. Kxh2 {[%emt 0:00:07]} Nxd7 {[%emt 0:00:38]} 19. Ne2 {[%emt 0:00:51]} Nf6 {[%emt 0:00:30]} 20. Ng3 {[%emt 0:01:12]} Qd6 {[%emt 0:01:32]} 21. Kg1 {[%emt 0:01:04]} Rac8 {[%emt 0:02:30]} 22. Qe2 {[%emt 0:00:21]} Rc7 {[%emt 0:09:18]} 23. Nf5 {[%emt 0:03:30]} Qe6 {[%emt 0:02:18]} 24. Qf3 {[%emt 0:00:47]} Rd7 {[%emt 0:09:43]} 25. Qg3 {[%emt 0:02:40]} g6 {[%emt 0:06:31]} 26. Nxh6+ {[%emt 0:00:10]} Kh7 {[%emt 0:02:06]} 27. Qg5 {[%emt 0:07:30]} Kh8 {[%emt 0:03:06]} 28. Ng4 {[%emt 0:07:14]} Nxg4 {[%emt 0:00:12]} 29. hxg4 {[%emt 0:00:43]} Kh7 {[%emt 0:00:40]} 30. g3 {[%emt 0:01:04]} Rh8 {[%emt 0:02:52]} 31. Kg2 {[%emt 0:01:29]} Rdd8 {[%emt 0:00:31]} 32. Rh1+ {[%emt 0:00:35]} Kg7 {[%emt 0:00:27]} 33. Rh5 {[%emt 0:02:39]} Qf6 {[%emt 0:03:14]} 34. Qxf6+ {[%emt 0:04:07]} Kxf6 {[%emt 0:00:06]} 35. Rxh8 {[%emt 0:00:04]} Rxh8 {[%emt 0:00:07]} 36. b4 {[%emt 0:00:04]} Ke6 {[%emt 0:00:54]} 37. g5 {[%emt 0:01:04]} Kd6 {[%emt 0:00:18]} 38. f4 {[%emt 0:00:15]} Bc8 {[%emt 0:00:32]} 39. a4 {[%emt 0:02:35]} Bg4 {[%emt 0:00:26]} 40. Rb1 {[%emt 0:01:11]} Re8 {[%emt 0:00:27]} 41. Re1 {[%emt 0:00:11]} c5 {[%emt 0:01:18]} 42. bxc5+ {[%emt 0:00:07]} bxc5 {[%emt 0:00:06]} 43. dxc5+ {[%emt 0:00:03]} Kxc5 {[%emt 0:00:15]} 44. Bb5 {[%emt 0:00:11]} Re7 {[%emt 0:00:44]} 45. Rc1+ {[%emt 0:00:07]} Kb4 {[%emt 0:00:27]} 46. Kf2 {[%emt 0:00:08]} Kb3 {[%emt 0:02:38]} 47. Rc5 {[%emt 0:00:22]} Be6 {[%emt 0:00:34]} 48. Ke2 {[%emt 0:02:12]} Kb4 {[%emt 0:00:12]} 49. Rc1 {[%emt 0:00:18]} Bf5 {[%emt 0:00:49]} 50. Kd2 {[%emt 0:00:32]} Be4 {[%emt 0:00:52]} 51. Rc8 {[%emt 0:00:47]} Bf5 {[%emt 0:00:37]} 52. Re8 {[%emt 0:01:37]} Rc7 {[%emt 0:00:25]} 53. Bd3 {[%emt 0:00:10]} Bd7 {[%emt 0:01:13]} 54. Re7 {[%emt 0:00:11]} Kxa4 {[%emt 0:00:41]} 55. Rxf7 {[%emt 0:00:10]} Rb7 {[%emt 0:00:18]} 56. Bxg6 {[%emt 0:01:14]} a5 {[%emt 0:00:14]} 57. Rxd7 {[%emt 0:00:20]} Rb2+ {[%emt 0:00:11]} 58. Kc3 {[%emt 0:00:08]} Re2 {[%emt 0:00:46]} 59. Kd3 {[%emt 0:00:22]} Rg2 {[%emt 0:00:09]} 60. Rxd5 {[%emt 0:00:06]} Rxg3 {[%emt 0:00:10]} 61. Be8+ {[%emt 0:00:05]} Kb4 {[%emt 0:00:12]} 62. Rb5+ {[%emt 0:00:24]} Ka4 {[%emt 0:00:12]} 63. Rb1+ {[%emt 0:00:10]} Ka3 {[%emt 0:00:05]} 64. Ra1+ {[%emt 0:00:07]} Kb4 {[%emt 0:00:07]} 65. Kd4 {[%emt 0:00:11]} Rg2 {[%emt 0:00:21]} 66. Ra4+ {[%emt 0:00:06]} Kb3 {[%emt 0:00:07]} 67. Rxa5 {[%emt 0:00:06]} 1-0